bitfinex/quotes_BTCUSD_20250530
["timestamp","ask_amount","ask_price","bid_price","bid_amount"]
[1748632893655,55.16416764,104920.0,104910.0,0.00214633]
[1748632893884,55.16416764,104920.0,104910.0,0.00114633]
[1748632894105,55.16616764,104920.0,104910.0,0.00114633]
[1748632895007,55.07365642,104920.0,104910.0,0.00114633]
[1748632900611,54.15480542,104920.0,104910.0,0.00114633]
[1748632901704,54.15480542,104920.0,104910.0,0.01020137]
[1748632914605,54.15480542,104920.0,104910.0,0.01120137]
[1748632916983,54.6997273,104920.0,104910.0,0.01120137]
[1748632917168,54.79223852,104920.0,104910.0,0.01120137]
[1748632917942,55.13223852,104920.0,104910.0,0.01120137]
[1748632918088,55.14677937,104920.0,104910.0,0.01120137]
[1748632918500,55.16542824,104920.0,104910.0,0.00214633]
[1748632921284,55.73764132,104920.0,104910.0,0.00214633]
[1748632921694,55.18132824,104920.0,104910.0,0.00214633]
[1748632922790,55.17932824,104920.0,104910.0,0.00214633]
[1748632922988,55.17732824,104920.0,104910.0,0.00214633]
[1748632923192,55.18132824,104920.0,104910.0,0.00214633]
[1748632923365,55.18232824,104920.0,104910.0,0.00214633]
[1748632923776,55.18132824,104920.0,104910.0,0.00214633]
[1748632924185,55.18532824,104920.0,104910.0,0.00214633]
[1748632925011,55.21393624,104920.0,104910.0,0.00214633]
[1748632925238,55.18532824,104920.0,104910.0,0.00214633]
[1748632925443,55.73025012,104920.0,104910.0,0.00214633]
[1748632925869,55.18532824,104920.0,104910.0,0.00214633]
[1748632926113,55.73025012,104920.0,104910.0,0.00214633]
[1748632927578,55.18532824,104920.0,104910.0,0.00214633]
[1748632930214,55.73025012,104920.0,104910.0,0.00214633]
[1748632931113,55.18532824,104920.0,104910.0,0.00214633]
[1748632931756,55.20102824,104920.0,104910.0,0.00214633]
[1748632932644,55.10851702,104920.0,104910.0,0.00214633]
[1748632942305,55.6534389,104920.0,104910.0,0.00214633]
[1748632943943,55.10851702,104920.0,104910.0,0.00214633]
[1748632944145,55.10851702,104920.0,104910.0,0.00114633]
[1748632944369,55.10851702,104920.0,104910.0,0.00014633]
[1748632944523,55.10851702,104920.0,104910.0,0.00114633]
[1748632944725,55.20102824,104920.0,104910.0,0.00114633]
[1748632945805,55.74595012,104920.0,104910.0,0.00114633]
[1748632946348,55.77324132,104920.0,104910.0,0.00114633]
[1748632946551,0.54022864,104880.0,104870.0,0.05833334]
[1748632946776,1.18100482,104880.0,104870.0,0.04312071]
[1748632947024,1.18100482,104880.0,104870.0,0.028021]
[1748632947436,1.18100482,104880.0,104870.0,0.043521]
[1748632947716,1.19554567,104880.0,104870.0,0.028021]
[1748632948168,1.19554567,104880.0,104870.0,0.01668737]
[1748632948404,1.28805689,104880.0,104870.0,0.01668737]
[1748632949083,1.28805689,104880.0,104870.0,0.00148737]
[1748632952230,0.94805689,104880.0,104870.0,0.00148737]
[1748632953812,0.93805689,104880.0,104870.0,0.00148737]
[1748632954249,1.84871329,104880.0,104870.0,0.00148737]
[1748632954483,0.77406953,104880.0,104870.0,0.00148737]
[1748632954700,1.30379141,104880.0,104870.0,0.00148737]
[1748632958330,1.31989141,104880.0,104870.0,0.00148737]
[1748632959126,1.30379141,104880.0,104870.0,0.00148737]
[1748632960729,1.19508019,104880.0,104870.0,0.01778737]
[1748632960946,1.18053934,104880.0,104870.0,0.01778737]
[1748632961188,1.18053934,104880.0,104870.0,0.00148737]
[1748632961189,1.77170207,104880.0,104870.0,0.00148737]
[1748632961900,1.79899327,104880.0,104870.0,0.00148737]
[1748632962128,0.20984292,104840.0,104830.0,0.0318]
[1748632962348,0.8506191,104840.0,104830.0,0.03184864]
[1748632962856,1.20515995,104840.0,104830.0,4.864e-05]
[1748632963074,1.23725995,104840.0,104830.0,4.864e-05]
[1748632963505,1.20515995,104840.0,104830.0,0.00204864]
[1748632963718,1.29767117,104840.0,104830.0,0.00204864]
[1748632964974,1.316812,104840.0,104830.0,0.00204864]
[1748632965593,1.32628237,104840.0,104830.0,0.00204864]
[1748632967492,1.23377115,104840.0,104830.0,0.00204864]
[1748632967924,1.23377115,104840.0,104830.0,0.01814864]
[1748632968615,0.68884927,104840.0,104830.0,0.01814864]
[1748632968780,1.20008947,104840.0,104830.0,0.03354864]
[1748632968987,1.1906191,104840.0,104830.0,0.03354864]
[1748632969198,1.28313032,104840.0,104830.0,0.03354864]
[1748632969804,1.29283536,104840.0,104830.0,0.03354864]
[1748632970667,1.28313032,104840.0,104830.0,0.03354864]
[1748632971026,0.30569722,104840.0,104830.0,0.03354864]
[1748632971278,0.20984292,104840.0,104830.0,0.22433372]
[1748632971425,0.20984292,104840.0,104830.0,0.78786968]
[1748632971626,0.20030504,104840.0,104830.0,0.58754544]
[1748632971848,0.20030504,104840.0,104830.0,0.78786977]
[1748632972629,0.20030504,104840.0,104830.0,0.25429788]
[1748632972868,0.20030504,104840.0,104830.0,0.26383704]
[1748632973604,0.19076688,104840.0,104830.0,0.05397355]
[1748632974006,0.14976688,104840.0,104830.0,0.05397355]
[1748632979169,0.14976688,104840.0,104830.0,0.25429788]
[1748632979380,0.14976688,104840.0,104830.0,0.05397355]
[1748632980518,0.14976688,104840.0,104830.0,0.26383704]
[1748632980727,0.19076523,104850.0,104830.0,0.26383686]
[1748632980929,0.2193809,104840.0,104830.0,0.82783661]
[1748632981134,0.1783809,104840.0,104830.0,0.05397355]
[1748632981550,0.81915708,104840.0,104830.0,0.03857355]
[1748632981759,0.81915708,104840.0,104830.0,0.02247355]
[1748632982162,0.83369793,104840.0,104830.0,0.02247355]
[1748632982345,0.86629793,104840.0,104830.0,0.00104864]
[1748632982769,0.86629793,104840.0,104830.0,0.00204864]
[1748632982920,1.29880915,104840.0,104830.0,0.00204864]
[1748632983126,1.29880915,104840.0,104830.0,0.00104864]
[1748632983506,1.29880915,104840.0,104830.0,0.00204864]
[1748632983921,1.29880915,104840.0,104830.0,0.00104864]
[1748632984125,1.29880915,104840.0,104830.0,4.864e-05]
[1748632989431,0.66137605,104840.0,104830.0,4.864e-05]
[1748632989633,1.20629793,104840.0,104830.0,4.864e-05]
[1748632990879,1.17369793,104840.0,104830.0,4.864e-05]
[1748632993108,0.62877605,104840.0,104830.0,4.864e-05]
[1748632993306,1.17369793,104840.0,104830.0,0.01504864]
[1748632993836,1.26620915,104840.0,104830.0,0.01504864]
[1748632994481,1.29483415,104840.0,104830.0,0.01504864]
[1748632994687,1.20232293,104840.0,104830.0,0.01504864]
[1748632995447,1.20232293,104840.0,104830.0,4.864e-05]
[1748632996360,1.21872293,104840.0,104830.0,4.864e-05]
[1748632999456,1.20232293,104840.0,104830.0,4.864e-05]
[1748632999824,1.29483415,104840.0,104830.0,4.864e-05]
[1748633000016,0.65740105,104840.0,104830.0,4.864e-05]
[1748633000240,1.20232293,104840.0,104830.0,4.864e-05]
[1748633006919,1.21772293,104840.0,104830.0,4.864e-05]
[1748633007139,1.23272293,104840.0,104830.0,4.864e-05]
[1748633010372,1.77764481,104840.0,104830.0,4.864e-05]
[1748633010587,1.32523415,104840.0,104830.0,4.864e-05]
[1748633020843,1.23272293,104840.0,104830.0,4.864e-05]
[1748633023761,1.20232293,104840.0,104830.0,4.864e-05]
[1748633024951,1.21742293,104840.0,104830.0,4.864e-05]
[1748633025162,1.20232293,104840.0,104830.0,4.864e-05]
[1748633025838,1.23322293,104840.0,104830.0,4.864e-05]
[1748633026045,1.32573415,104840.0,104830.0,4.864e-05]
[1748633026318,1.29483415,104840.0,104830.0,4.864e-05]
[1748633026580,1.31123415,104840.0,104830.0,4.864e-05]
[1748633028805,1.32773415,104840.0,104830.0,4.864e-05]
[1748633030542,1.31123415,104840.0,104830.0,4.864e-05]
[1748633030986,1.29483415,104840.0,104830.0,4.864e-05]
[1748633031887,0.74991227,104840.0,104830.0,4.864e-05]
[1748633032094,1.29483415,104840.0,104830.0,4.864e-05]
[1748633035908,1.20232293,104840.0,104830.0,4.864e-05]
[1748633039948,0.86232293,104840.0,104830.0,4.864e-05]
[1748633041756,0.86232293,104840.0,104830.0,0.01504864]
[1748633042638,0.86232293,104840.0,104830.0,0.03104864]
[1748633042993,0.31740105,104840.0,104830.0,0.03104864]
[1748633043212,0.2742352,104840.0,104830.0,4.864e-05]
[1748633043423,0.2420352,104840.0,104830.0,4.864e-05]
[1748633043672,0.1791352,104840.0,104830.0,4.864e-05]
[1748633043898,0.0763809,104840.0,104830.0,4.864e-05]
[1748633044132,0.00953816,104840.0,104830.0,0.02052012]
[1748633044352,0.20030504,104840.0,104830.0,0.02052012]
[1748633045006,0.20030504,104840.0,104830.0,0.00917013]
[1748633045209,0.84108122,104840.0,104830.0,0.00917013]
[1748633046483,0.93359244,104840.0,104830.0,0.00917013]
[1748633046908,0.94813329,104840.0,104830.0,0.00917013]
[1748633047322,0.85562207,104840.0,104830.0,0.00917013]
[1748633048628,0.85562207,104840.0,104830.0,4.864e-05]
[1748633057476,0.88425107,104840.0,104830.0,4.864e-05]
[1748633065259,1.30665107,104840.0,104830.0,4.864e-05]
[1748633065469,1.31665107,104840.0,104830.0,4.864e-05]
[1748633065671,1.40916229,104840.0,104830.0,4.864e-05]
[1748633066276,1.37676229,104840.0,104830.0,4.864e-05]
[1748633066633,1.38176229,104840.0,104830.0,4.864e-05]
[1748633067013,1.38576229,104840.0,104830.0,4.864e-05]
[1748633067452,1.38176229,104840.0,104830.0,4.864e-05]
[1748633067688,1.39736229,104840.0,104830.0,4.864e-05]
[1748633067885,1.40136229,104840.0,104830.0,4.864e-05]
[1748633068092,1.41656229,104840.0,104830.0,4.864e-05]
[1748633072609,1.38576229,104840.0,104830.0,4.864e-05]
[1748633080314,1.37576229,104840.0,104830.0,4.864e-05]
[1748633080518,1.38576229,104840.0,104830.0,4.864e-05]
[1748633080810,1.37576229,104840.0,104830.0,4.864e-05]
[1748633081581,1.32576229,104840.0,104830.0,4.864e-05]
[1748633081959,1.37576229,104840.0,104830.0,4.864e-05]
[1748633082154,1.32576229,104840.0,104830.0,4.864e-05]
[1748633082575,1.37576229,104840.0,104830.0,4.864e-05]
[1748633082779,1.32576229,104840.0,104830.0,4.864e-05]
[1748633084248,1.23325107,104840.0,104830.0,4.864e-05]
[1748633084447,0.89325107,104840.0,104830.0,4.864e-05]
[1748633085643,0.34832919,104840.0,104830.0,4.864e-05]
[1748633086068,0.33378834,104840.0,104830.0,4.864e-05]
[1748633086419,0.31970019,104840.0,104830.0,4.864e-05]
[1748633090710,0.86462207,104840.0,104830.0,4.864e-05]
[1748633091049,0.86062207,104840.0,104830.0,4.864e-05]
[1748633091451,0.85562207,104840.0,104830.0,4.864e-05]
[1748633091674,0.85862207,104840.0,104830.0,4.864e-05]
[1748633091875,0.31370019,104840.0,104830.0,4.864e-05]
[1748633092201,0.40621141,104840.0,104830.0,4.864e-05]
[1748633092364,0.95113329,104840.0,104830.0,4.864e-05]
[1748633092567,1.29413329,104840.0,104830.0,4.864e-05]
[1748633093591,1.31063329,104840.0,104830.0,4.864e-05]
[1748633093818,1.32573329,104840.0,104830.0,4.864e-05]
[1748633095713,0.78081141,104840.0,104830.0,4.864e-05]
[1748633095942,1.23322207,104840.0,104830.0,4.864e-05]
[1748633096895,1.26185407,104840.0,104830.0,4.864e-05]
[1748633097988,1.23025407,104840.0,104830.0,4.864e-05]
[1748633098190,1.24025407,104840.0,104830.0,4.864e-05]
[1748633099916,1.29025407,104840.0,104830.0,4.864e-05]
[1748633100105,1.38276529,104840.0,104830.0,4.864e-05]
[1748633101295,1.33276529,104840.0,104830.0,4.864e-05]
[1748633101510,1.38276529,104840.0,104830.0,4.864e-05]
[1748633103062,1.39786529,104840.0,104830.0,4.864e-05]
[1748633103295,1.88776529,104840.0,104830.0,4.864e-05]
[1748633104747,1.80185407,104840.0,104830.0,4.864e-05]
[1748633104957,1.75185407,104840.0,104830.0,4.864e-05]
[1748633105177,0.82069134,104840.0,104830.0,4.864e-05]
[1748633105809,0.83523219,104840.0,104830.0,4.864e-05]
[1748633106340,0.82069134,104840.0,104830.0,4.864e-05]
[1748633106548,1.45812444,104840.0,104830.0,4.864e-05]
[1748633106753,1.47266529,104840.0,104830.0,4.864e-05]
[1748633107945,1.44403329,104840.0,104830.0,4.864e-05]
[1748633109139,0.80660019,104840.0,104830.0,4.864e-05]
[1748633109501,0.31670019,104840.0,104830.0,4.864e-05]
[1748633110703,0.30215934,104840.0,104830.0,4.864e-05]
[1748633111718,0.30215934,104840.0,104830.0,0.55409223]
[1748633111920,0.30215934,104840.0,104830.0,0.00917035]
[1748633116457,0.3514518,104840.0,104830.0,0.00917035]
[1748633116877,0.30215934,104840.0,104830.0,0.00917035]
[1748633119382,0.87808122,104840.0,104830.0,0.00917035]
[1748633119572,0.89262207,104840.0,104830.0,0.00917035]
[1748633120382,1.23262207,104840.0,104830.0,4.864e-05]
[1748633120592,1.20162207,104840.0,104830.0,4.864e-05]
[1748633120807,1.38276329,104840.0,104830.0,4.864e-05]
[1748633121453,1.92691543,104840.0,104830.0,4.864e-05]
[1748633121867,1.33276329,104840.0,104830.0,4.864e-05]
[1748633122081,1.31976329,104840.0,104830.0,4.864e-05]
[1748633122500,1.32376329,104840.0,104830.0,4.864e-05]
[1748633123348,1.86868517,104840.0,104830.0,4.864e-05]
[1748633123556,1.32376329,104840.0,104830.0,4.864e-05]
[1748633123994,1.32076329,104840.0,104830.0,4.864e-05]
[1748633124200,1.32476329,104840.0,104830.0,4.864e-05]
[1748633125069,1.35606329,104840.0,104830.0,4.864e-05]
[1748633125270,1.40606329,104840.0,104830.0,4.864e-05]
[1748633125480,0.20996309,104780.0,104770.0,0.91118403]
[1748633125723,0.20996309,104780.0,104770.0,0.89675855]
[1748633125880,0.20996309,104780.0,104770.0,0.90342626]
[1748633126077,0.20996309,104780.0,104770.0,0.89207628]
[1748633126740,0.21096309,104780.0,104770.0,0.90817715]
[1748633127284,0.21096309,104780.0,104770.0,0.91317715]
[1748633127482,0.21096309,104780.0,104770.0,0.91317569]
[1748633127687,0.21096309,104780.0,104770.0,0.91317519]
[1748633127903,0.21096309,104780.0,104770.0,0.90651186]
[1748633128105,0.21096309,104780.0,104770.0,0.91317519]
[1748633129295,0.21096309,104780.0,104770.0,0.91317375]
[1748633129496,0.21096309,104780.0,104770.0,0.91317378]
[1748633129720,0.21096309,104780.0,104770.0,0.9158713]
[1748633129925,0.21096309,104780.0,104770.0,0.922533]
[1748633131233,0.21096309,104780.0,104770.0,0.92252869]
[1748633131657,0.21096309,104780.0,104770.0,0.92252867]
[1748633131868,0.21096309,104780.0,104770.0,1.113423]
[1748633132080,0.21096309,104780.0,104770.0,0.9225283]
[1748633132495,0.21096309,104780.0,104770.0,0.9225282]
[1748633132912,0.21096309,104780.0,104770.0,0.92252858]
[1748633133162,0.21096309,104780.0,104770.0,0.92252856]
[1748633133569,0.21096309,104780.0,104770.0,0.9158713]
[1748633133783,0.21096309,104780.0,104770.0,0.92252738]
[1748633134523,0.21096309,104780.0,104770.0,0.9225279]
[1748633134716,0.21096309,104780.0,104770.0,1.11342223]
[1748633134839,0.21096309,104780.0,104770.0,0.9225279]
[1748633135245,0.21096309,104780.0,104770.0,0.9158713]
[1748633135606,0.21096309,104780.0,104770.0,1.10676563]
[1748633135804,0.21096309,104780.0,104770.0,1.11631034]
[1748633135962,0.21096309,104780.0,104770.0,1.13251157]
[1748633136162,0.21096309,104780.0,104770.0,1.13251085]
[1748633136373,0.21096309,104780.0,104770.0,1.13539949]
[1748633136596,0.02963068,104780.0,104770.0,1.15448791]
[1748633136832,0.01054307,104780.0,104770.0,1.15448791]
[1748633137011,0.02962985,104780.0,104770.0,1.15448791]
[1748633137209,0.02962985,104780.0,104770.0,1.16114172]
[1748633137369,0.02962985,104780.0,104770.0,1.16114169]
[1748633137757,0.02962976,104780.0,104770.0,1.15448791]
[1748633137961,0.02962976,104780.0,104770.0,1.18093761]
[1748633138370,0.03917338,104780.0,104770.0,1.18093761]
[1748633138571,0.02962976,104780.0,104770.0,1.18093761]
[1748633139075,0.02962976,104780.0,104770.0,1.18759025]
[1748633139552,0.02962976,104780.0,104770.0,1.18093761]
[1748633139753,0.02962976,104780.0,104770.0,1.18759197]
[1748633140174,0.02962976,104780.0,104770.0,1.18093761]
[1748633140376,0.02962976,104780.0,104770.0,1.18759197]
[1748633141151,0.02962967,104780.0,104770.0,1.18759197]
[1748633141357,0.23959294,104780.0,104770.0,1.18759197]
[1748633141552,0.23959294,104780.0,104770.0,1.18093761]
[1748633142106,0.23959294,104780.0,104770.0,1.18759835]
[1748633142271,0.23959294,104780.0,104770.0,1.18759826]
[1748633142805,0.23959294,104780.0,104770.0,1.18093761]
[1748633143009,0.23959294,104780.0,104770.0,1.1876047]
[1748633143235,0.04871682,104780.0,104770.0,1.18760432]
[1748633143437,0.04871682,104780.0,104770.0,1.18093761]
[1748633143629,0.23959349,104780.0,104770.0,1.18760402]
[1748633143836,0.04871737,104780.0,104770.0,1.18760402]
[1748633144040,0.03917366,104780.0,104770.0,1.18093761]
[1748633144216,0.03917366,104780.0,104770.0,1.1876047]
[1748633144418,0.03917366,104780.0,104770.0,1.16851628]
[1748633144682,0.02963004,104780.0,104770.0,1.16851628]
[1748633144833,0.04871737,104780.0,104770.0,1.15897175]
[1748633145033,0.23959349,104780.0,104770.0,1.14762176]
[1748633145236,0.22050689,104780.0,104770.0,1.14762176]
[1748633145436,0.22050689,104780.0,104770.0,0.39271703]
[1748633145639,0.21096345,104780.0,104770.0,0.93763987]
[1748633145865,0.21096345,104780.0,104770.0,0.92853739]
[1748633146066,0.25114723,104780.0,104770.0,0.40408765]
[1748633146263,0.22726345,104780.0,104770.0,0.40408765]
[1748633146629,0.22726345,104780.0,104770.0,0.39741743]
[1748633146833,0.24366345,104780.0,104770.0,0.40408908]
[1748633147036,0.24366345,104780.0,104770.0,0.3776163]
[1748633147492,0.24366345,104780.0,104770.0,0.37094461]
[1748633147714,0.24366345,104780.0,104770.0,0.3776163]
[1748633147869,0.24366345,104780.0,104770.0,0.37761588]
[1748633148074,0.24366345,104780.0,104770.0,0.38899915]
[1748633149063,0.24366345,104780.0,104770.0,0.38231772]
[1748633149495,0.24366345,104780.0,104770.0,0.3889992]
[1748633149712,0.24366345,104780.0,104770.0,0.38231772]
[1748633150319,0.24366345,104780.0,104770.0,0.3889992]
[1748633150522,0.24366345,104780.0,104770.0,0.38231772]
[1748633150882,0.24366345,104780.0,104770.0,0.3889993]
[1748633151265,0.24366345,104780.0,104770.0,0.38231772]
[1748633151424,0.24366345,104780.0,104770.0,0.38899932]
[1748633152034,0.24366345,104780.0,104770.0,0.38231772]
[1748633152219,0.24366345,104780.0,104770.0,0.9272396]
[1748633153386,0.24366345,104780.0,104770.0,0.93392098]
[1748633153672,0.24366345,104780.0,104770.0,0.93392157]
[1748633153840,0.24366345,104780.0,104770.0,0.9272396]
[1748633154036,0.24366345,104780.0,104770.0,0.93392163]
[1748633154240,0.24366345,104780.0,104770.0,0.93392177]
[1748633154614,0.24366345,104780.0,104770.0,0.93392165]
[1748633154813,0.24366345,104780.0,104770.0,0.9272396]
[1748633155222,0.24366345,104780.0,104770.0,0.93392153]
[1748633155462,0.24366345,104780.0,104770.0,0.9272396]
[1748633155676,0.24366345,104780.0,104770.0,0.93392144]
[1748633156401,0.24366345,104780.0,104770.0,0.9339212]
[1748633156606,0.24366345,104780.0,104770.0,0.93392103]
[1748633156805,0.24366345,104780.0,104770.0,0.9272396]
[1748633157023,0.24366345,104780.0,104770.0,0.93392091]
[1748633157377,0.28711723,104780.0,104770.0,0.93392091]
[1748633157779,0.24366345,104780.0,104770.0,0.93392091]
[1748633157985,0.24366345,104780.0,104770.0,0.93392123]
[1748633158756,0.24366345,104780.0,104770.0,0.59392063]
[1748633159626,0.24366345,104780.0,104770.0,0.5872396]
[1748633159837,0.24366345,104780.0,104770.0,0.59392026]
[1748633160177,0.24366345,104780.0,104770.0,0.59391993]
[1748633160591,0.24366345,104780.0,104770.0,0.5872396]
[1748633160804,0.28711723,104780.0,104770.0,0.59391911]
[1748633161247,0.24366345,104780.0,104770.0,0.59391911]
[1748633161480,0.24366345,104780.0,104770.0,0.04231772]
[1748633161718,0.24366345,104780.0,104770.0,0.593918]
[1748633162412,0.24366345,104780.0,104770.0,0.5872396]
[1748633162597,0.24366345,104780.0,104770.0,0.59391799]
[1748633162798,0.24366345,104780.0,104770.0,0.59391731]
[1748633163103,0.24366345,104780.0,104770.0,0.58455787]
[1748633163986,0.28711723,104780.0,104770.0,0.03963599]
[1748633164341,0.28711723,104780.0,104770.0,0.03963539]
[1748633164574,0.28711723,104780.0,104770.0,0.0396354]
[1748633164773,0.92789341,104780.0,104770.0,0.0396354]
[1748633164981,0.92789341,104780.0,104770.0,0.03295828]
[1748633165191,0.89519341,104780.0,104770.0,0.03295828]
[1748633165796,0.92629341,104780.0,104770.0,0.01248668]
[1748633166000,0.90973426,104780.0,104770.0,0.01248668]
[1748633166410,0.90973426,104780.0,104770.0,0.00748668]
[1748633166827,0.36481238,104780.0,104770.0,0.01048668]
[1748633167034,0.3203586,104780.0,104770.0,0.00048668]
[1748633167262,0.3509586,104780.0,104770.0,0.00048668]
[1748633167504,0.3519586,104780.0,104770.0,0.00448668]
[1748633167971,0.3519586,104780.0,104770.0,0.00048668]
[1748633168208,0.37690181,104780.0,104770.0,0.00048668]
[1748633168446,0.34630181,104780.0,104770.0,0.00048668]
[1748633169633,0.37690181,104780.0,104770.0,0.00048668]
[1748633170073,0.36190181,104780.0,104770.0,0.00048668]
[1748633170293,0.37690181,104780.0,104770.0,0.00048668]
[1748633170792,0.92182369,104780.0,104770.0,0.00048668]
[1748633171030,0.89122369,104780.0,104770.0,0.00048668]
[1748633171675,0.92182369,104780.0,104770.0,0.00048668]
[1748633172118,0.89122369,104780.0,104770.0,0.00048668]
[1748633173066,0.92382369,104780.0,104770.0,0.00048668]
[1748633173514,0.89122369,104780.0,104770.0,0.00048668]
[1748633174065,0.37890181,104780.0,104770.0,0.00048668]
[1748633174275,0.33941775,104780.0,104770.0,0.00048668]
[1748633174965,0.30681775,104780.0,104770.0,0.00048668]
[1748633175163,0.85173963,104780.0,104770.0,0.00048668]
[1748633175571,0.88433963,104780.0,104770.0,0.00048668]
[1748633175777,0.94425085,104780.0,104770.0,0.00048668]
[1748633175978,0.39932897,104780.0,104770.0,0.00048668]
[1748633177377,0.9913917,104780.0,104770.0,0.00048668]
[1748633177567,0.9587917,104780.0,104770.0,0.00048668]
[1748633177729,1.2987917,104780.0,104770.0,0.00048668]
[1748633178132,1.3313917,104780.0,104770.0,0.00048668]
[1748633178330,0.75386982,104780.0,104770.0,0.00048668]
[1748633178740,1.2987917,104780.0,104770.0,0.00048668]
[1748633180002,1.3297917,104780.0,104770.0,0.00048668]
[1748633180734,1.2987917,104780.0,104770.0,0.00048668]
[1748633181157,1.3310917,104780.0,104770.0,0.00048668]
[1748633181273,1.2987917,104780.0,104770.0,0.00048668]
[1748633181976,1.3313917,104780.0,104770.0,0.00048668]
[1748633182361,1.2987917,104780.0,104770.0,0.00048668]
[1748633185225,0.75386982,104780.0,104770.0,0.00048668]
[1748633185460,1.2987917,104780.0,104770.0,0.00048668]
[1748633186525,0.75386982,104780.0,104770.0,0.00048668]
[1748633186723,1.2987917,104780.0,104770.0,0.00048668]
[1748633187227,0.75386982,104780.0,104770.0,0.00048668]
[1748633187494,0.6613586,104780.0,104770.0,0.00048668]
[1748633188143,0.30681775,104780.0,104770.0,0.00048668]
[1748633188385,0.33891775,104780.0,104770.0,0.00048668]
[1748633189477,0.30681775,104780.0,104770.0,0.00048668]
[1748633189686,0.39932897,104780.0,104770.0,0.00048668]
[1748633190135,0.43062897,104780.0,104770.0,0.00048668]
[1748633190539,0.33811775,104780.0,104770.0,0.00048668]
[1748633190963,0.32291775,104780.0,104770.0,0.00048668]
[1748633191572,0.30681775,104780.0,104770.0,0.00048668]
[1748633193808,1.20628048,104780.0,104770.0,0.00048668]
[1748633194009,1.20628048,104780.0,104770.0,0.0096077]
[1748633194267,1.3314917,104780.0,104770.0,0.0096077]
[1748633194885,1.3314917,104780.0,104770.0,0.00048668]
[1748633195094,1.2987917,104780.0,104770.0,0.00048668]
[1748633197036,0.75386982,104780.0,104770.0,0.00048668]
[1748633197243,1.2987917,104780.0,104770.0,0.00048668]
[1748633197838,1.3274387,104780.0,104770.0,0.00048668]
[1748633199413,1.3374387,104780.0,104770.0,0.00048668]
[1748633200740,0.67546475,104780.0,104770.0,0.00048668]
[1748633201391,0.7218056,104780.0,104770.0,0.00048668]
[1748633201644,0.3818056,104780.0,104770.0,0.00048668]
[1748633201854,0.33861775,104780.0,104770.0,0.54540856]
[1748633202505,0.33861775,104780.0,104770.0,0.00048668]
[1748633202918,0.33861775,104780.0,104770.0,0.00960492]
[1748633203123,0.33861775,104780.0,104770.0,0.01628363]
[1748633203331,0.33861775,104780.0,104770.0,0.00960492]
[1748633203543,0.33861775,104780.0,104770.0,0.01628153]
[1748633204573,0.33861775,104780.0,104770.0,0.00960492]
[1748633204780,0.30681775,104780.0,104770.0,0.00960492]
[1748633204996,0.30681775,104780.0,104770.0,0.56120129]
[1748633205611,0.30681775,104780.0,104770.0,0.56119904]
[1748633205825,0.21096345,104780.0,104770.0,0.56119838]
[1748633206029,0.21096345,104780.0,104770.0,0.77118186]
[1748633206262,0.21096345,104780.0,104770.0,1.1302684]
[1748633206263,0.02008623,104780.0,104770.0,1.1302684]
[1748633206467,0.2395933,104780.0,104770.0,1.13026859]
[1748633206688,0.22050707,104780.0,104770.0,1.12064477]
[1748633206894,0.21096363,104780.0,104770.0,1.15666199]
[1748633207297,0.20996363,104780.0,104770.0,0.59265096]
[1748633207509,0.19087612,104780.0,104770.0,0.9381338]
[1748633207712,0.19087612,104780.0,104770.0,0.92303409]
[1748633208204,0.19087612,104780.0,104770.0,0.92303069]
[1748633208332,0.19087612,104780.0,104770.0,0.91637002]
[1748633210041,0.19087612,104780.0,104770.0,0.37144814]
[1748633210255,0.19087612,104780.0,104770.0,0.91637002]
[1748633210589,0.22237612,104780.0,104770.0,0.91637002]
[1748633210792,0.22237612,104780.0,104770.0,0.37144814]
[1748633211198,0.22237612,104780.0,104770.0,0.90499691]
[1748633211745,0.19087612,104780.0,104770.0,0.90499691]
[1748633212574,0.28673042,104780.0,104770.0,0.56218787]
[1748633212812,0.31883042,104780.0,104770.0,0.01726602]
[1748633212992,0.31883042,104780.0,104770.0,0.01060492]
[1748633213637,0.22297612,104780.0,104770.0,0.5555268]
[1748633214254,0.22297612,104780.0,104770.0,0.56512693]
[1748633214476,0.22297612,104780.0,104770.0,0.5555268]
[1748633218118,0.22297612,104780.0,104770.0,0.01060492]
[1748633218359,0.22297612,104780.0,104770.0,0.5555268]
[1748633219471,0.94035497,104780.0,104770.0,0.01060492]
[1748633219690,0.2099833,104770.0,104760.0,0.01137311]
[1748633219929,0.21004326,104740.0,104730.0,0.02647282]
[1748633220147,0.21004326,104740.0,104730.0,0.57806728]
[1748633220384,0.200496,104740.0,104730.0,1.32350458]
[1748633220620,0.21959071,104740.0,104730.0,1.64763049]
[1748633220854,0.01909371,104740.0,104730.0,1.41840288]
[1748633221059,0.21002339,104750.0,104740.0,0.55959061]
[1748633221272,0.21002339,104750.0,104740.0,1.2205136]
[1748633221273,0.0095459,104750.0,104740.0,1.2205136]
[1748633221483,0.20049031,104760.0,104750.0,0.54047722]
[1748633221691,0.19094469,104760.0,104750.0,0.89158817]
[1748633221898,0.19094469,104760.0,104750.0,0.9011347]
[1748633222106,0.19094469,104760.0,104750.0,1.10161192]
[1748633222308,0.19094469,104760.0,104750.0,1.11298539]
[1748633222508,0.19094469,104760.0,104750.0,1.11298623]
[1748633222635,0.19094469,104760.0,104750.0,1.1063191]
[1748633222840,0.19094469,104760.0,104750.0,1.11298522]
[1748633223163,0.19094469,104760.0,104750.0,1.11298518]
[1748633223368,0.19094469,104760.0,104750.0,1.10743874]
[1748633223967,0.19094469,104760.0,104750.0,1.12653153]
[1748633224425,0.19094469,104760.0,104750.0,0.90896304]
[1748633224815,0.19094469,104760.0,104750.0,0.90896413]
[1748633225015,0.19094469,104760.0,104750.0,1.110495]
[1748633225320,0.19094469,104760.0,104750.0,1.11049499]
[1748633225566,0.19094469,104760.0,104750.0,1.10382613]
[1748633225796,0.19094469,104760.0,104750.0,1.11049493]
[1748633226499,0.19094469,104760.0,104750.0,0.91956634]
[1748633227414,0.19094469,104760.0,104750.0,0.37464446]
[1748633227617,0.19094469,104760.0,104750.0,0.91956634]
[1748633227822,0.19094469,104760.0,104750.0,0.9195691]
[1748633228239,0.19094469,104760.0,104750.0,0.91289535]
[1748633228458,0.19094469,104760.0,104750.0,0.91957313]
[1748633228745,0.19094469,104760.0,104750.0,1.11050387]
[1748633229092,0.19094469,104760.0,104750.0,1.12560358]
[1748633229556,0.19094469,104760.0,104750.0,0.9346728]
[1748633229761,0.19094469,104760.0,104750.0,0.93467389]
[1748633230140,0.19094469,104760.0,104750.0,0.92799506]
[1748633230611,0.96104829,104760.0,104750.0,0.03915378]
[1748633230815,0.81557841,104760.0,104750.0,0.02109971]
[1748633231238,0.80103756,104760.0,104750.0,0.006]
[1748633231450,1.34595944,104760.0,104750.0,0.006]
[1748633231657,1.36504737,104760.0,104750.0,0.006]
[1748633232135,0.21004326,104740.0,104730.0,4.865e-05]
[1748633232373,0.34599662,104740.0,104730.0,4.865e-05]
[1748633232600,0.36119662,104740.0,104730.0,4.865e-05]
[1748633232843,0.36119662,104740.0,104730.0,0.00917036]
[1748633233042,1.29133832,104740.0,104730.0,0.00917036]
[1748633233255,1.31999532,104740.0,104730.0,0.00917036]
[1748633233472,1.35149532,104740.0,104730.0,0.00917036]
[1748633234140,0.79719808,104740.0,104730.0,4.865e-05]
[1748633234381,0.44265723,104740.0,104730.0,4.865e-05]
[1748633234587,0.35175456,104740.0,104730.0,4.865e-05]
[1748633234792,0.36775456,104740.0,104730.0,4.865e-05]
[1748633234999,0.21204326,104740.0,104730.0,0.54497053]